fUST/lending_fUST_20251106
["ID","MTS","AMOUNT","RATE_DAILY","PERIOD"]
[393289543,1762426736578,500.0,0.00037266,60]
[393289546,1762426736852,500.0,0.00037266,60]
[393289549,1762426737123,500.0,0.00037266,60]
[393289552,1762426737381,500.0,0.00037266,60]
[393289555,1762426737708,500.0,0.00037266,60]
[393289556,1762426737904,500.0,0.00037266,60]
[393289558,1762426738154,500.0,0.00037266,60]
[393289560,1762426738393,500.0,0.00037266,60]
[393289569,1762426740322,500.0,0.00037266,60]
[393289572,1762426740556,500.0,0.00037266,60]
[393289591,1762426742139,500.0,0.00037266,60]
[393289593,1762426742402,500.0,0.00037266,60]
[393289595,1762426742682,500.0,0.00037266,60]
[393289597,1762426742956,500.0,0.00037266,60]
[393289599,1762426743193,500.0,0.00037266,60]
[393289601,1762426743490,500.0,0.00037266,60]
[393289608,1762426746626,500.0,0.00037266,60]
[393289609,1762426746862,500.0,0.00037266,60]
[393289610,1762426747112,505.32613978,0.00037266,60]
[393289611,1762426747437,503.8650079,0.00037266,60]
[393289691,1762426767568,500.0,0.00037264,60]
[393289692,1762426767686,500.0,0.00037264,60]
[393289693,1762426767914,500.0,0.00037264,60]
[393289694,1762426768144,500.0,0.00037264,60]
[393289747,1762426796749,500.0,0.00037264,60]
[393289748,1762426797024,500.0,0.00037264,60]
[393289749,1762426797305,500.0,0.00037264,60]
[393289750,1762426799293,500.0,0.00037264,60]
[393289751,1762426799528,500.0,0.00037264,60]
[393289754,1762426800026,500.0,0.00037264,60]
[393289756,1762426800256,500.0,0.00037264,60]
[393289800,1762426809052,500.0,0.00037264,60]
[393289802,1762426809449,500.0,0.00037264,60]
[393289804,1762426809692,500.0,0.00037264,60]
[393289805,1762426809925,500.0,0.00037264,60]
[393289806,1762426813694,500.0,0.00037264,60]
[393289807,1762426813940,500.0,0.00037264,60]
[393289863,1762426828593,500.0,0.00037264,60]
[393289874,1762426831627,500.0,0.00037264,60]
[393289876,1762426831860,500.0,0.00037264,60]
[393289879,1762426832099,500.0,0.00037264,60]
[393289881,1762426832352,500.0,0.00037264,60]
[393289954,1762426841908,500.0,0.00037264,60]
[393289955,1762426842157,500.0,0.00037264,60]
[393289958,1762426842487,500.0,0.00037264,60]
[393289963,1762426843046,500.0,0.00037264,60]
[393289968,1762426843462,500.0,0.00037264,60]
[393289970,1762426843563,500.0,0.00037264,60]
[393289974,1762426843805,500.0,0.00037264,60]
[393289977,1762426844045,500.0,0.00037264,60]
[393289979,1762426844287,503.16458661,0.00037264,60]
[393290051,1762426851057,500.0,0.00037264,60]
[393290053,1762426851260,500.0,0.00037264,60]
[393290057,1762426851494,500.0,0.00037264,60]
[393290059,1762426851736,500.0,0.00037264,60]
[393290061,1762426851979,500.0,0.00037264,60]
[393290063,1762426852209,500.0,0.00037264,60]
[393290065,1762426852446,500.0,0.00037264,60]
[393290067,1762426852700,500.0,0.00037264,60]
[393290361,1762426903221,429.51400742,0.00037264,60]
[393290550,1762426942778,265.28455568,0.00037264,60]
[393290587,1762426952810,357.41348,0.00037264,60]
[393290680,1762426968770,324.16550537,0.00037264,60]
[393290719,1762426975311,498.29046584,0.00037264,120]
[393290788,1762426984712,347.38035153,0.00037264,60]
[393290795,1762426987073,495.12748333,0.00037264,60]
[393290798,1762426988934,385.14959742,0.00037264,60]
[393290802,1762426990464,464.91032953,0.00037264,60]
[393290832,1762426996878,404.70984914,0.00037264,60]
[393290833,1762426997055,483.82511984,0.00037264,60]
[393290849,1762427002608,489.2666841,0.00037264,60]
[393290943,1762427021017,256.10594476,0.00037264,60]
[393290944,1762427023699,468.9788025,0.00037264,60]
[393290945,1762427024034,436.5713748,0.00037264,60]
[393290946,1762427024296,175.89746943,0.00037264,60]
[393290952,1762427026161,275.63450936,0.00037264,60]
[393290958,1762427031246,333.83588016,0.00037264,60]
[393290960,1762427032144,459.61685502,0.00037264,60]
[393290961,1762427032216,320.06117576,0.00037264,60]
[393290962,1762427034511,359.25211779,0.00037264,60]
[393290966,1762427037617,380.10470036,0.00037264,60]
[393290984,1762427039738,500.0,0.00037264,60]
[393290987,1762427039962,374.50334154,0.00037264,60]
[393290991,1762427040390,482.81880348,0.00037264,60]
[393290997,1762427041325,448.99249237,0.00037264,60]
[393291002,1762427042976,360.82043262,0.00037264,60]
[393291003,1762427043259,370.40775969,0.00037264,60]
[393291005,1762427044661,245.66906992,0.00037264,60]
[393291006,1762427045038,168.89097564,0.00037264,60]
[393291007,1762427045565,293.54865903,0.00037264,60]
[393291008,1762427045602,316.51641878,0.00037264,60]
[393291009,1762427045639,205.51888849,0.00037264,60]
[393291010,1762427046134,174.87553341,0.00037264,60]
[393291011,1762427047417,320.07871569,0.00037264,60]
[393291012,1762427051242,444.6318338,0.00037267,60]
[393291017,1762427052185,291.52411914,0.00037267,60]
[393291025,1762427054599,476.62294164,0.00037267,60]
[393291027,1762427054868,261.20222937,0.00037267,60]
[393291032,1762427056115,171.01820629,0.00037267,60]
[393291041,1762427057879,386.83794109,0.00037267,60]
[393291043,1762427060002,387.57026434,0.00037267,60]
[393291044,1762427060606,391.19779184,0.00037267,60]
[393291046,1762427061642,489.17320712,0.00037267,60]
[393291052,1762427062701,275.84008606,0.00037267,60]
[393291057,1762427063422,327.16310695,0.00037267,60]
[393291059,1762427063883,392.83,0.00037267,60]
[393291062,1762427065739,317.77968425,0.00037267,60]
[393291064,1762427066654,319.67751437,0.00037267,60]
[393291074,1762427071053,224.93497683,0.00037267,60]
[393291076,1762427071413,408.2660794,0.00037267,60]
[393291077,1762427071500,344.71521025,0.00037267,60]
[393291079,1762427071712,394.52827906,0.00037267,60]
[393291085,1762427073606,417.97233055,0.00037267,60]
[393291086,1762427074018,453.00282486,0.00037267,60]
[393291087,1762427075739,265.86172155,0.00037267,60]
[393291088,1762427076840,276.95161278,0.00037267,60]
[393291089,1762427077479,336.43290984,0.00037267,60]
[393291090,1762427077887,280.53144758,0.00037267,60]
[393291091,1762427078557,262.893011,0.00037267,60]
[393291092,1762427078859,359.79859606,0.00037267,60]
[393291108,1762427082537,301.26462763,0.00037267,60]
[393291109,1762427084923,425.02167701,0.00037267,60]
[393291110,1762427086760,318.94722804,0.00037267,60]
[393291111,1762427087789,172.17609606,0.00037267,60]
[393291114,1762427091425,167.96737231,0.00037267,60]
[393291115,1762427092097,446.45431816,0.00037267,60]
[393291123,1762427094184,326.26149196,0.00037267,60]
[393291131,1762427096053,236.65156573,0.00037267,60]
[393291133,1762427096408,309.98,0.00037267,60]
[393291140,1762427098506,187.90219816,0.00037267,60]
[393291142,1762427099653,382.36605454,0.00037267,60]
[393291145,1762427101472,307.26511557,0.00037267,60]
[393291147,1762427103126,301.97488925,0.00037267,60]
[393291149,1762427105406,480.42585758,0.00037267,60]
[393291150,1762427106076,151.0,0.00037267,120]
[393291151,1762427106111,151.0,0.00037267,120]
[393291152,1762427106179,250.0,0.00037267,120]
[393291153,1762427106214,161.26404366,0.00037267,120]
[393291154,1762427106276,279.34080904,0.00037267,60]
[393291155,1762427106703,151.0,0.00037267,120]
[393291156,1762427106750,156.587,0.00037267,120]
[393291157,1762427106784,250.0,0.00037267,120]
[393291158,1762427107401,156.587,0.00037267,120]
[393291160,1762427108330,462.7252114,0.00037267,60]
[393291161,1762427108728,414.0,0.00037267,120]
[393291162,1762427108942,151.0,0.00037267,120]
[393291165,1762427109325,250.0,0.00037267,120]
[393291166,1762427109360,497.37633134,0.00037267,60]
[393291167,1762427109513,429.318,0.00037267,120]
[393291169,1762427109547,393.84717068,0.00037267,60]
[393291170,1762427109651,156.587,0.00037267,120]
[393291172,1762427109814,297.212238,0.00037267,60]
[393291173,1762427109931,250.0,0.00037267,120]
[393291174,1762427109967,201.71690252,0.00037267,120]
[393291175,1762427110002,445.202766,0.00037267,120]
[393291177,1762427110188,338.17224571,0.00037267,120]
[393291179,1762427110324,162.380719,0.00037267,120]
[393291182,1762427110606,250.0,0.00037267,120]
[393291183,1762427110641,461.67526834,0.00037267,120]
[393291186,1762427111006,168.3888056,0.00037267,120]
[393291187,1762427111200,283.27685677,0.00037267,60]
[393291188,1762427111263,250.0,0.00037267,120]
[393291189,1762427111300,478.75725327,0.00037267,120]
[393291191,1762427111632,174.61919141,0.00037267,120]
[393291194,1762427111907,250.0,0.00037267,120]
[393291195,1762427111964,168.9184456,0.00037267,60]
[393291196,1762427112034,496.47127164,0.00037267,120]
[393291198,1762427112280,181.08010149,0.00037267,120]
[393291200,1762427112353,500.0,0.00037267,60]
[393291201,1762427112387,151.0,0.00037267,120]
[393291203,1762427112523,250.0,0.00037267,120]
[393291204,1762427112614,344.07940448,0.00037267,60]
[393291205,1762427112651,514.84070869,0.00037267,120]
[393291207,1762427113006,187.78006525,0.00037267,120]
[393291209,1762427113042,151.0,0.00037267,120]
[393291210,1762427113163,250.0,0.00037267,120]
[393291211,1762427113273,533.88981491,0.00037267,120]
[393291214,1762427113626,194.72792766,0.00037267,120]
[393291216,1762427113812,250.0,0.00037267,120]
[393291217,1762427113884,230.75725709,0.00037267,60]
[393291218,1762427113971,533.88981491,0.00037267,120]
[393291220,1762427114258,201.93286099,0.00037267,120]
[393291222,1762427114463,250.0,0.00037267,120]
[393291223,1762427114775,270.62322302,0.00037267,60]
[393291226,1762427114899,209.40437684,0.00037267,120]
[393291227,1762427115513,217.15233878,0.00037267,120]
[393291228,1762427115606,250.0,0.00037267,120]
[393291229,1762427115745,222.72293223,0.00037267,60]
[393291230,1762427116130,225.18697532,0.00037267,120]
[393291231,1762427116260,250.0,0.00037267,120]
[393291232,1762427116755,233.51889341,0.00037267,120]
[393291233,1762427116928,250.0,0.00037267,120]
[393291234,1762427117368,242.15909246,0.00037267,120]
[393291235,1762427117472,388.2199709,0.00037267,60]
[393291236,1762427117986,251.11897888,0.00037267,120]
[393291237,1762427118224,315.04940151,0.00037267,60]
[393291238,1762427118610,260.4103811,0.00037267,120]
[393291239,1762427118650,351.05243616,0.00037267,60]
[393291240,1762427119246,270.0455652,0.00037267,120]
[393291241,1762427119926,280.03725112,0.00037267,120]
[393291243,1762427120531,290.39862941,0.00037267,120]
[393291245,1762427120810,165.26867384,0.00037267,120]
[393291247,1762427121035,268.27202601,0.00037267,60]
[393291249,1762427121171,290.39862941,0.00037267,120]
[393291251,1762427121869,371.17664802,0.00037267,60]
[393291252,1762427122427,396.91750725,0.00037267,60]
[393291254,1762427123789,310.33888081,0.00037267,60]
[393291259,1762427129916,180.0,0.00037267,20]
[393291260,1762427130552,180.0,0.00037267,20]
[393291261,1762427131206,180.0,0.00037267,20]
[393291262,1762427131581,246.97058786,0.00037267,60]
[393291263,1762427131617,267.58423918,0.00037267,60]
[393291264,1762427131833,180.0,0.00037267,20]
[393291266,1762427132470,180.0,0.00037267,20]
[393291267,1762427133118,180.0,0.00037267,20]
[393291268,1762427133406,164.21196537,0.00037267,60]
[393291269,1762427133736,180.0,0.00037267,20]
[393291270,1762427134032,216.05325787,0.00037267,60]
[393291271,1762427134098,282.50942313,0.00037267,60]
[393291272,1762427134352,180.0,0.00037267,20]
[393291273,1762427134963,180.0,0.00037267,20]
[393291275,1762427135580,180.0,0.00037267,20]
[393291276,1762427136202,180.0,0.00037267,20]
[393291277,1762427136832,180.0,0.00037267,20]
[393291280,1762427137484,180.0,0.00037267,20]
[393291281,1762427138047,180.0,0.00037267,20]
[393291282,1762427138498,219.37107616,0.00037267,60]
[393291283,1762427138668,180.0,0.00037267,20]
[393291284,1762427139300,180.0,0.00037267,20]
[393291285,1762427140361,474.48613224,0.00037267,60]
[393291286,1762427143131,414.3635464,0.00037267,60]
[393291287,1762427143362,387.48,0.00037267,60]
[393291288,1762427144986,442.2631598,0.00037267,60]
[393291289,1762427145333,483.78562786,0.00037267,60]
[393291290,1762427146663,426.94292697,0.00037267,60]
[393291292,1762427147087,379.29876491,0.00037267,60]
[393291293,1762427147620,324.23418258,0.00037267,60]
[393291294,1762427149072,268.72146108,0.00037267,60]
[393291295,1762427149444,370.10732875,0.00037267,60]
[393291296,1762427150382,324.30105993,0.00037267,60]
[393291297,1762427150716,500.0,0.00037267,60]
[393291298,1762427150808,324.40902198,0.00037267,60]
[393291299,1762427150956,180.97456921,0.00037267,60]
[393291300,1762427151120,301.70165568,0.00037267,60]
[393291301,1762427152566,447.53062462,0.00037267,60]
[393291303,1762427159107,457.19123299,0.00037267,60]
[393291304,1762427161082,484.95305478,0.00037267,60]
[393291305,1762427161452,350.48456011,0.00037267,60]
[393291307,1762427164813,177.62485186,0.00037267,60]
[393291308,1762427167061,373.19280405,0.00037267,60]
[393291309,1762427167940,189.35119674,0.00037267,60]
[393291310,1762427168111,430.29977885,0.00037267,60]
[393291311,1762427170584,272.39043724,0.00037267,60]
[393291314,1762427175983,381.91231201,0.00037267,60]
[393291315,1762427176907,174.21030269,0.00037267,60]
[393291316,1762427179071,388.58587355,0.00037267,60]
[393291318,1762427183034,200.0,0.00037267,30]
[393291319,1762427183181,387.10477963,0.00037267,60]
[393291320,1762427184786,468.11307713,0.00037267,60]
[393291321,1762427187745,500.0,0.00037267,60]
[393291322,1762427187924,182.39931946,0.00037267,60]
[393291323,1762427187972,189.97433554,0.00037267,60]
[393291324,1762427188897,467.6692441,0.00037267,60]
[393291332,1762427190748,158.73644131,0.00037267,60]
[393291338,1762427191741,355.95147971,0.00037267,60]
[393291345,1762427193216,315.78586924,0.00037267,60]
[393291348,1762427195060,188.21185035,0.00037267,60]
[393291355,1762427198657,487.78250939,0.00037267,60]
[393291356,1762427199463,202.94,0.00037267,60]
[393291362,1762427199637,176.41288807,0.00037267,60]
[393291409,1762427204896,335.52203236,0.00037267,60]
[393291410,1762427205404,187.250269,0.00037267,60]
[393291414,1762427207645,500.0,0.00037267,60]
[393291415,1762427207879,282.89204258,0.00037267,60]
[393291416,1762427208348,427.21169551,0.00037267,60]
[393291417,1762427208945,449.29488249,0.00037267,60]
[393291418,1762427209468,256.07513879,0.00037267,60]
[393291430,1762427212854,245.80779066,0.00037267,60]
[393291436,1762427218331,347.06273754,0.00037267,60]
[393291452,1762427222576,405.03089776,0.00037267,60]
[393291474,1762427227052,228.13679909,0.00037267,60]
[393291512,1762427230305,258.01544566,0.00037267,60]
[393291536,1762427231940,411.01755358,0.00037267,60]
[393291538,1762427232054,496.8114765,0.00037267,60]
[393291562,1762427233773,230.27020365,0.00037267,60]
[393291563,1762427233816,188.57007302,0.00037267,60]
[393291582,1762427235375,487.50774025,0.00037267,60]
[393291591,1762427236095,272.21744104,0.00037267,60]
[393291615,1762427238268,297.46976956,0.00037267,60]
[393291633,1762427240097,496.80776536,0.00037267,60]
[393291634,1762427240166,485.46962569,0.00037267,60]
[393291643,1762427241008,188.38714813,0.00037267,60]
[393291667,1762427243557,189.98592048,0.00037267,60]
[393291670,1762427243747,379.3498266,0.00037267,60]
[393291698,1762427247365,351.29000949,0.00037267,60]
[393291718,1762427249874,302.06063443,0.00037267,60]
[393291740,1762427251657,192.86085329,0.00037267,60]
[393291762,1762427252899,175.01488149,0.00037267,60]
[393291791,1762427256525,266.73004863,0.00037267,60]
[393291819,1762427263438,427.06363854,0.00037267,60]
[393291835,1762427267212,489.25599764,0.00037267,60]
[393291849,1762427268783,158.33228379,0.00037267,60]
[393291852,1762427268996,500.0,0.00037267,60]
[393291855,1762427269239,386.99327583,0.00037267,60]
[393291873,1762427271102,322.05208321,0.00037267,60]
[393291885,1762427272844,480.50284594,0.00037267,60]
[393291886,1762427272923,498.80440834,0.00037267,30]
[393291890,1762427273312,209.02490838,0.00037267,60]
[393291892,1762427273508,231.36266916,0.00037267,60]
[393291896,1762427274691,358.79389864,0.00037267,60]
[393291901,1762427275453,259.96381098,0.00037267,60]
[393291910,1762427276573,492.99314718,0.00037267,60]
[393291949,1762427282285,190.56572456,0.00037267,60]
[393291953,1762427284231,476.99199093,0.00037267,60]
[393291954,1762427284325,500.0,0.00037267,60]
[393291955,1762427284385,195.7966087,0.00037267,60]
[393291956,1762427284423,241.7737056,0.00037267,60]
[393291957,1762427284575,180.98012939,0.00037267,60]
[393291978,1762427292078,296.95744061,0.00037267,60]
[393291984,1762427293783,500.0,0.00037267,60]
[393291986,1762427294064,163.72064871,0.00037267,60]
[393291992,1762427295885,380.11232138,0.00037267,60]
[393291993,1762427295968,500.0,0.00037267,60]
[393291994,1762427296214,350.27786549,0.00037267,60]
[393292002,1762427298055,496.2982304,0.00037267,60]
[393292009,1762427299883,199.26042565,0.00037267,60]
[393292014,1762427301895,478.81647519,0.00037267,60]
[393292015,1762427304460,343.64342837,0.00037267,60]
[393292016,1762427304759,321.44910737,0.00037267,60]
[393292021,1762427306976,491.56595541,0.00037267,60]
[393292024,1762427307684,465.62344619,0.00037267,60]
[393292025,1762427308095,367.60689796,0.00037267,60]
[393292027,1762427308992,387.35301231,0.00037267,60]
[393292033,1762427310938,336.70115999,0.00037267,60]
[393292038,1762427312279,480.13711985,0.00037267,60]
[393292048,1762427313968,318.70034699,0.00037267,60]
[393292051,1762427314333,270.9902274,0.00037267,60]
[393292067,1762427318812,255.25675016,0.00037267,60]
[393292073,1762427320701,496.07692489,0.00037267,60]
[393292074,1762427320784,393.99986157,0.00037267,60]
[393292083,1762427323043,331.25491876,0.00037267,60]
[393292085,1762427324160,486.28064801,0.00037267,60]
[393292086,1762427324302,441.1623774,0.00037267,60]
[393292090,1762427325939,471.82823572,0.00037267,60]
[393292103,1762427329685,371.18075355,0.00037267,60]
[393292106,1762427331286,401.9431894,0.00037267,60]
[393292107,1762427332115,458.77895304,0.00037267,60]
[393292108,1762427332619,457.92280999,0.00037267,60]
[393292109,1762427333093,342.52251019,0.00037267,60]
[393292111,1762427334434,490.70108755,0.00037267,60]
[393292121,1762427338575,475.70452819,0.00037267,60]
[393292138,1762427342880,200.52611169,0.00037267,60]
[393292139,1762427342994,295.64922176,0.00037267,60]
[393292140,1762427344105,368.313337,0.00037267,60]
[393292141,1762427344145,490.584186,0.00037267,60]
[393292151,1762427345915,443.00638056,0.00037267,60]
[393292156,1762427347957,212.75361901,0.00037267,60]
[393292157,1762427348004,247.59833295,0.00037267,60]
[393292158,1762427349115,-150.0,0.00015942,2]
[393292159,1762427349142,-281.5353016,0.00017942,2]
[393292160,1762427349166,-136.53830519,0.00020525,2]
[393292161,1762427349634,173.09539393,0.00037269,60]
[393292162,1762427351067,219.92616056,0.00037269,60]
[393292177,1762427353849,304.6628806,0.00037269,60]
[393292180,1762427354546,206.89033568,0.00037269,60]
[393292181,1762427354956,266.42008042,0.00037269,60]
[393292182,1762427355707,195.12860465,0.00037269,60]
[393292183,1762427356330,299.10655102,0.00037269,60]
[393292195,1762427361778,187.81680532,0.00037269,60]
[393292209,1762427364173,351.08684278,0.00037269,60]
[393292217,1762427364895,438.09558522,0.00037269,60]
[393292220,1762427365064,471.9617879,0.00037269,60]
[393292230,1762427366203,-150.0,0.0002288,2]
[393292231,1762427366223,-381.30546696,0.0002396,2]
[393292232,1762427366245,-379.76040339,0.00024267,2]
[393292233,1762427366265,-160.0,0.00024515,2]
[393292234,1762427366284,-168.0,0.00024521,2]
[393292236,1762427366302,-441.0,0.00024521,2]
[393292237,1762427366320,-437.52623236,0.00024699,2]
[393292238,1762427366338,-353.96724749,0.00024773,2]
[393292239,1762427366356,-762.93780126,0.00024787,2]
[393292240,1762427366374,-175.47,0.00024788,10]
[393292241,1762427366391,-245.18,0.0002479,2]
[393292242,1762427366410,-500.0,0.00024797,2]
[393292243,1762427366429,-169.39,0.00024797,8]
[393292245,1762427366450,-75843.69838583,0.00024798,2]
[393292259,1762427368862,441.52177041,0.00037269,60]
[393292261,1762427370192,163.950152,0.00037269,60]
[393292272,1762427372166,187.77908069,0.00037269,60]
[393292280,1762427374790,213.64109698,0.00037269,60]
[393292286,1762427378187,475.40764716,0.00037269,60]
[393292287,1762427379494,179.31685548,0.00037269,60]
[393292288,1762427379913,190.49513498,0.00037269,30]
[393292290,1762427381669,345.50573963,0.00037269,60]
[393292345,1762427394789,236.4006258,0.00037269,60]
[393292347,1762427396716,313.43187916,0.00037269,60]
[393292349,1762427396959,214.01371211,0.00037269,60]
[393292350,1762427398269,189.5937799,0.00037269,60]
[393292357,1762427401430,184.02531568,0.00037269,60]
[393292406,1762427410919,318.00790496,0.00037269,60]
[393292408,1762427413476,403.68281794,0.00037269,60]
[393292410,1762427414184,451.1662959,0.00037269,60]
[393292415,1762427415001,328.58189668,0.00037269,60]
[393292430,1762427416626,151.0,0.00037269,60]
[393292431,1762427416744,227.85885298,0.00037269,60]
[393292432,1762427416879,293.52780404,0.00037269,60]
[393292433,1762427417366,156.587,0.00037269,60]
[393292434,1762427418031,162.380719,0.00037269,60]
[393292438,1762427418650,168.3888056,0.00037269,60]
[393292440,1762427418889,272.84822486,0.00037269,60]
[393292443,1762427419257,174.61919141,0.00037269,60]
[393292446,1762427420078,181.08010149,0.00037269,60]
[393292447,1762427420506,446.43617992,0.00037269,60]
[393292449,1762427420734,187.78006525,0.00037269,60]
[393292452,1762427421454,194.72792766,0.00037269,60]
[393292456,1762427422672,201.93286099,0.00037269,60]
[393292457,1762427423291,398.01458506,0.00037269,60]
[393292458,1762427423336,209.40437684,0.00037269,60]
[393292459,1762427423409,162.64539537,0.00037269,60]
[393292460,1762427424010,217.15233878,0.00037269,60]
[393292461,1762427424790,225.18697532,0.00037269,60]
[393292462,1762427425340,233.51889341,0.00037269,60]
[393292464,1762427425962,242.15909246,0.00037269,60]
[393292465,1762427426591,251.11897888,0.00037269,60]
[393292467,1762427427199,260.4103811,0.00037269,60]
[393292469,1762427427830,270.0455652,0.00037269,60]
[393292470,1762427428536,280.03725112,0.00037269,60]
[393292473,1762427429196,290.39862941,0.00037269,60]
[393292474,1762427429325,481.05757106,0.00037269,60]
[393292475,1762427429822,290.39862941,0.00037269,60]
[393292529,1762427432518,-150.0,0.00021682,15]
[393292531,1762427432529,-150.0,0.00023793,2]
[393292534,1762427432545,-131.5353016,0.00024798,2]
[393292537,1762427432570,-321.4646984,0.00024798,2]
[393292539,1762427432581,-2889.0210361,0.00024798,2]
[393292560,1762427432866,485.24869289,0.00037269,60]
[393292566,1762427435763,332.22868233,0.00037269,60]
[393292590,1762427440489,397.41749369,0.00037269,60]
[393292614,1762427440732,-3182.8017099,0.0002471,2]
[393292617,1762427440744,-3617.0475878,0.00024798,2]
[393292624,1762427440805,295.92958552,0.00037269,60]
[393292895,1762427443890,310.9418542,0.00037269,60]
[393292896,1762427443935,495.09148915,0.00037269,60]
[393292919,1762427446952,-746.1206595,0.00024798,2]
[393292920,1762427447007,-19046.2855756,0.00024798,2]
[393292921,1762427447019,-3715.47227645,0.00024798,2]
[393292922,1762427447032,-709.6301631,0.00024798,2]
[393292936,1762427450458,546.99481002,0.00037269,60]
[393292939,1762427452424,500.0,0.00037269,60]
[393292940,1762427452652,155.08979452,0.00037269,60]
[393292941,1762427453321,333.49175364,0.00037269,60]
[393292943,1762427454004,243.25633021,0.00037269,60]
[393292950,1762427456535,191.39544267,0.00037269,60]
[393292951,1762427456755,354.70279805,0.00037269,60]
[393292958,1762427458355,343.77730687,0.00037269,60]
[393292977,1762427463816,162.76318573,0.00037269,60]
[393292978,1762427463876,371.8444021,0.00037269,60]
[393292983,1762427465081,446.48570477,0.00037269,60]
[393292984,1762427465955,374.98358541,0.00037269,60]
[393292992,1762427469451,268.20609737,0.00037269,60]
[393293013,1762427473021,368.158065,0.00037269,60]
[393293017,1762427473813,246.66398857,0.00037269,60]
[393293018,1762427474542,414.970976,0.00037269,60]
[393293019,1762427475594,206.50245852,0.00037269,60]
[393293021,1762427477181,477.47384143,0.00037269,60]
[393293031,1762427477949,226.55062981,0.00037269,60]
[393293050,1762427479583,426.82421881,0.00037269,60]
[393293052,1762427479678,352.58942985,0.00037269,60]
[393293056,1762427480522,223.56976934,0.00037269,60]
[393293057,1762427480719,436.67985417,0.00037269,60]
[393293059,1762427482210,306.26,0.00037269,60]
[393293063,1762427483298,200.0,0.00037269,30]
[393293073,1762427484878,343.79287879,0.00037269,60]
[393293087,1762427489808,354.95882207,0.00037269,60]
[393293090,1762427490303,476.6572658,0.00037269,60]
[393293112,1762427493349,203.65132683,0.00037269,60]
[393293132,1762427495461,323.92282459,0.00037269,60]
[393293156,1762427500237,279.66675696,0.00037269,60]
[393293158,1762427500456,287.0097415,0.00037269,60]
[393293204,1762427507127,233.25836492,0.00037269,60]
[393293245,1762427513515,244.95295961,0.00037269,60]
[393293247,1762427513708,411.44174766,0.00037269,60]
[393293274,1762427520678,371.9717198,0.00037269,60]
[393293277,1762427521605,162.84834388,0.00037269,60]
[393293283,1762427523414,213.51164924,0.00037269,60]
[393293286,1762427525726,198.25614567,0.00037269,60]
[393293290,1762427526971,342.22805899,0.00037269,60]
[393293372,1762427536240,263.02607459,0.00037269,60]
[393293375,1762427536376,212.37907567,0.00037269,60]
[393293419,1762427540875,1362.38,0.00037269,21]
[393293420,1762427541140,1362.38,0.00037269,21]
[393293422,1762427541267,322.0619775,0.00037269,60]
[393293424,1762427541437,1362.38,0.00037269,21]
[393293426,1762427541715,1362.38,0.00037269,21]
[393293429,1762427541984,1362.38,0.00037269,21]
[393293431,1762427542200,1362.38,0.00037269,21]
[393293434,1762427543031,1362.38,0.00037269,21]
[393293437,1762427543283,1362.38,0.00037269,21]
[393293438,1762427543567,1362.38,0.00037269,21]
[393293441,1762427544274,1362.38,0.00037269,21]